Cogmind - Beta 10.2 @@@ ROGUE MODE // 2020.11.02 @ 17:41:31 // Halloween2020/ForbiddenLore Player: Terminus Result: Self-destructed Performance ------------- Evolutions (2) 1000 Regions Visited (6) 1200 Robots Destroyed (112) 560 Value Destroyed (2553) 2553 Prototype IDs (5) 100 Alien Tech Used (0) 0 Bonus (313) 313 TOTAL SCORE: 5726 Bonus ------- High Alert Combat Kills 175 Follower Combat Kills 211 Friendly Fire -73 Cogmind --------- Core Integrity 147/550 Matter 300/300 Energy 129/265 System Corruption 0% Temperature Cool (128) Movement Walking (185) Ox2 Location -8/Storage Parts ------- > --- POWER (1) -------- Improved Ion Engine > --- PROPULSION (3) --- Carbon-fiber Leg Titanium Leg > --- UTILITY (5) ------ Large Storage Unit High-capacity Storage Unit High-capacity Storage Unit > --- WEAPON (2) ------- Light EM Pulse Cannon > --- INVENTORY (26) --- Improved Ion Engine Improved Ion Engine Improved Aluminum Leg Titanium Leg Improved Heat Sink Advanced Sensor Array Advanced Sensor Array Improved Signal Interpreter Advanced Targeting Computer Weapon Cycler Heavy Armor Plating Hardened Light Armor Plating Hacking Suite Hacking Suite Advanced Beam Rifle EM Pulse Cannon EM Pulse Cannon Advanced Beam Cannon Advanced Beam Cannon Advanced Beam Cannon Ion Cannon Heavy Ion Cannon Precision Rocket Launcher Precision Rocket Launcher Plasma Cutter Peak State ------------ > --- POWER ------------ Nuclear Core > --- PROPULSION ------- Improved Aluminum Leg Carbon-fiber Leg Carbon-fiber Leg > --- UTILITY ---------- Improved Heat Sink Large Storage Unit High-capacity Storage Unit High-capacity Storage Unit Improved Light Armor Plating > --- WEAPON ----------- Shock Rifle Precision Rocket Launcher > --- INVENTORY -------- Improved Ion Engine Improved Ion Engine Carbon-fiber Leg Improved Heat Sink Advanced Sensor Array Advanced Sensor Array Improved Signal Interpreter Advanced Targeting Computer Weapon Cycler Heavy Armor Plating Hardened Light Armor Plating Hacking Suite Heavy Particle Gun Advanced Beam Rifle Advanced Beam Rifle Advanced Beam Rifle Light EM Pulse Cannon Light EM Pulse Cannon EM Pulse Cannon EM Pulse Cannon Ion Cannon Heavy Ion Cannon Heavy Missile Launcher Heavy Missile Launcher Heavy Mace [Rating: 37] Favorites ----------- Power Ion Engine Engine Ion Engine Power Core Nuclear Core Propulsion Improved Aluminum Leg Leg Improved Aluminum Leg Wheel Wheel Utility High-capacity Storage Unit Device Improved Heat Sink Storage High-capacity Storage Unit Protection Hardened Light Armor Plating Weapon Assault Rifle Energy Gun Advanced Beam Rifle Energy Cannon Light EM Pulse Cannon Ballistic Gun Assault Rifle Launcher Mini Grenade Launcher Build | -11 -10 -10 -10 -9 -8 -8 ------- Run | Scr Mat Min Exi Min Mat Sto Slots Evolved 4 | . . . . . 4 . Power . | . . . . . . . Propulsion 1 | . . . . . 1 . Utility 3 | . . . . . 3 . Weapon . | . . . . . . . Parts Attached 100 | 7 19 . 2 6 40 26 Power 8 | 1 2 . . 1 3 1 Engine 6 | 1 2 . . 1 1 1 Core 2 | . . . . . 2 . Reactor . | . . . . . . . Propulsion 18 | 2 7 . . . 5 4 Treads . | . . . . . . . Leg 17 | 2 6 . . . 5 4 Wheel 1 | . 1 . . . . . Hover . | . . . . . . . Flight . | . . . . . . . Utility 18 | 2 2 . 2 . 8 4 Device 6 | . . . . . 5 1 Storage 9 | 2 2 . 2 . 2 1 Processor . | . . . . . . . Hackware . | . . . . . . . Protection 3 | . . . . . 1 2 Artifact . | . . . . . . . Weapon 56 | 2 8 . . 5 24 17 Energy Gun 15 | . 1 . . . 6 8 Energy Cannon 21 | . 4 . . 2 10 5 Ballistic Gun 10 | 2 3 . . 1 4 . Ballistic Cannon . | . . . . . . . Launcher 10 | . . . . 2 4 4 Special Weapon . | . . . . . . . Impact Weapon . | . . . . . . . Slashing Weapon . | . . . . . . . Piercing Weapon . | . . . . . . . Special Melee Weapon . | . . . . . . . Unidentified Prototypes 5 | . . . . . 3 2 Parts Lost 21 | . 1 . . 2 8 10 Power 2 | . . . . 1 . 1 Propulsion 7 | . 1 . . . 3 3 Utility 6 | . . . . . 3 3 Weapon 6 | . . . . 1 2 3 Highest Loss Streak 4 | . 1 . . 1 2 4 Average Slot Usage (%) 98 | . 96 100 100 100 98 98 Engine 8 | . 13 14 14 14 2 3 Core 3 | . . . . . 6 5 Leg 26 | . 26 28 28 28 26 25 Device 4 | . . . . . 7 10 Storage 27 | . 28 28 28 28 26 27 Protection 4 | . . . . . 9 7 Energy Gun 4 | . 1 . . . 6 9 Energy Cannon 9 | . 7 14 14 14 8 8 Ballistic Gun 8 | . 17 14 14 13 2 . Naked Turns . | . . . . . . . Heaviest Build 106 | 17 28 26 74 78 106 102 Greatest Support 47 | 20 26 26 26 26 43 47 Greatest Overweight (x) 6 | 2 6 . 2 2 3 3 Average Overweight (x) 1 | . . . . 2 2 2 Largest Inventory Capacity 30 | 8 12 12 20 20 30 26 Average Capacity 20 | 6 10 12 13 20 25 26 Most Carried 26 | 2 12 12 13 17 26 26 Average Carried 17 | 1 8 12 12 15 20 25 Final Capacity 26 | 8 12 12 20 20 26 26 Final Carried 26 | 2 12 12 13 17 26 26 Class Distribution -------------------- 62% | Hauler-Mutant 30% | Mutant 6% | Commander-Mutant Dominant Class ---------------- Mutant | -10/Materials Mutant | -10/Mines Mutant | -10/Exiles Hauler-Mutant | -9/Mines Hauler-Mutant | -8/Materials Hauler-Mutant | -8/Storage Resources | -11 -10 -10 -10 -9 -8 -8 ----------- Run | Scr Mat Min Exi Min Mat Sto Matter Collected 1843 | 272 264 173 . 221 543 370 Remotely . | . . . . . . . Salvage Created 3663 | 51 542 173 . 230 1458 1209 Parts 218 | 4 37 10 . 23 81 63 Haulers Intercepted 14 | . 2 . . . 6 6 Recyclers Shooed 8 | . . . . . 5 3 Parts Field Recycled . | . . . . . . . Retrieved Matter . | . . . . . . . Parts Self-Destructed . | . . . . . . . Prevented . | . . . . . . . Kills | -11 -10 -10 -10 -9 -8 -8 ------- Run | Scr Mat Min Exi Min Mat Sto Combat Hostiles Destroyed 75 | . 12 4 . 15 24 20 Guns 28 | . 11 1 . 2 5 9 Cannons 16 | . . 3 . 4 9 . AOE 29 | . 1 . . 9 9 10 Classes Destroyed 12 | 1 6 . . 1 3 1 Worker 8 | . 3 . . 1 3 1 Builder 5 | . 1 . . . 3 1 Hauler 14 | . 2 . . . 6 6 Recycler 7 | 1 1 . . . 2 3 Operator 1 | . . . . . . 1 Watcher 2 | . 1 . . . . 1 Swarmer 30 | . 9 . . 12 5 4 Grunt 26 | . 3 4 . 2 8 9 Brawler 2 | . . . . . 1 1 Duelist 1 | . . . . 1 . . Sentry 14 | . . . . . 8 6 Hunter 2 | . . . . . 2 . Best Kill Streak 10 | 1 10 2 . 6 7 7 Combat Bots Only 7 | . 7 2 . 5 5 5 Max Kills in Single Turn 3 | 1 2 1 . 3 3 3 Gunslinging 1 | . 1 . . . . . Exploded 3 | . 1 . . 3 2 2 Melee . | . . . . . . . Uniques/NPCs Destroyed . | . . . . . . . Combat | -11 -10 -10 -10 -9 -8 -8 -------- Run | Scr Mat Min Exi Min Mat Sto Damage Taken 3649 | . 344 111 . 277 1167 1750 Core 502 | . 51 . . 48 179 224 Absorbed by Shields . | . . . . . . . Core Remaining (%) 80 | 100 . . . 60 . . Volleys Fired 256 | 2 48 10 . 22 102 72 Largest 2 | 2 2 2 . 2 2 2 Hottest 140 | 40 116 80 . 85 140 122 Shots Fired 477 | 4 95 20 . 38 191 129 Gun 304 | 4 86 10 . 16 87 101 Cannon 146 | . 9 10 . 16 93 18 Launcher 27 | . . . . 6 11 10 Special . | . . . . . . . Kinetic 137 | 4 86 10 . 16 21 . Thermal 201 | . 6 10 . 16 120 49 Explosive 27 | . . . . 6 11 10 Electromagnetic 112 | . 3 . . . 39 70 Robot Hit Streak 15 | 3 9 4 . 4 15 14 Robot Miss Streak 6 | 1 6 1 . 3 4 4 Penetration Max . | . . . . . . . Secondary Targets 3 | . 1 . . . . 2 Max Gunslinging Chain 1 | . 1 . . . . 1 Shots Hit Robots 297 | 3 58 14 . 16 119 87 Core Hits 159 | 2 24 7 . 19 61 46 Critical Hits 4 | . . 1 . . 2 1 Critical Kills 2 | . . 1 . . 1 . Critical Parts Destroyed 2 | . . . . . 1 1 Melee Attacks . | . . . . . . . Impact . | . . . . . . . Slashing . | . . . . . . . Piercing . | . . . . . . . Sneak Attacks . | . . . . . . . Combat Hostiles . | . . . . . . . Follow-up Attacks . | . . . . . . . Damage Inflicted 8697 | 38 836 222 . 764 3617 3220 Guns 3024 | 38 595 98 . 102 826 1365 Cannons 2273 | . 127 124 . 244 1576 202 Explosions 3388 | . 114 . . 418 1203 1653 Melee . | . . . . . . . Ramming 12 | . . . . . 12 . Kinetic 972 | 38 595 98 . 102 139 . Thermal 3045 | . 54 124 . 244 1863 760 Explosive 3284 | . 114 . . 418 1139 1613 Electromagnetic 1384 | . 73 . . . 464 847 Impact . | . . . . . . . Slashing . | . . . . . . . Piercing . | . . . . . . . Highest Corruption . | . . . . . . . Average Corruption . | . . . . . . . Corruption Purged . | . . . . . . . Overload Shots . | . . . . . . . Overflow Damage 266 | . 17 . . 14 119 116 Projectiles 66 | . . . . 13 53 . Explosions 200 | . 17 . . 1 66 116 Melee . | . . . . . . . Knockbacks . | . . . . . . . Impact . | . . . . . . . Kinetic . | . . . . . . . Secondary . | . . . . . . . Self-Inflicted Damage 183 | . . . . 25 91 67 Shots 5 | . . . . 1 3 1 Rammed . | . . . . . . . Targets Rammed 1 | . . . . . 1 . Kicked 1 | . . . . . 1 . Crushed . | . . . . . . . Highest Temperature 355 | . 54 123 . 154 355 195 Average Temperature 69 | . 21 51 . 56 79 70 Received Heat Transfer 969 | . 66 66 . 18 360 459 Effects 2 | . . . . . 2 . Energy Bleed 1 | . . . . . 1 . Interference 1 | . . . . . 1 . Siege Activations . | . . . . . . . Robots Corrupted 1 | . . . . . 1 . Combat Hostiles 1 | . . . . . 1 . Parts Fried 12 | . 1 . . . 3 8 Impact Corruptions . | . . . . . . . Robots Melted 1 | . . . . . . 1 Combat Hostiles 1 | . . . . . . 1 Parts Melted 4 | . 1 1 . 1 1 . Heat Transferred 4984 | . 111 259 . 333 2899 1382 Parts Sabotaged . | . . . . . . . Parts Stolen . | . . . . . . . Parts Stripped . | . . . . . . . Power Chain Reactions 2 | . . . . . 1 1 Missiles Intercepted . | . . . . . . . Alert | -11 -10 -10 -10 -9 -8 -8 ------- Run | Scr Mat Min Exi Min Mat Sto Peak Influence 594 | 5 250 134 . 260 445 594 Initial 160 | . 3 4 . . 64 160 Average 218 | 2 135 60 . 124 321 272 Maximum Alert Level 2 | . 1 . . 1 2 2 Low Security (%) 49 | 100 68 100 . 85 12 40 Level 1 36 | . 31 . . 14 68 28 Level 2 13 | . . . . . 19 30 Level 3 . | . . . . . . . Level 4 . | . . . . . . . Level 5 . | . . . . . . . High Security . | . . . . . . . Max Security . | . . . . . . . Squads Dispatched 8 | . 2 . . . 3 3 Investigation 3 | . 2 . . . 1 . Extermination . | . . . . . . . Reinforcement 3 | . . . . . 2 1 Assault 2 | . . . . . . 2 Garrison . | . . . . . . . Intercept . | . . . . . . . Construction Impeded 2 | . . . . . 1 1 Haulers Reinforced . | . . . . . . . Stealth | -11 -10 -10 -10 -9 -8 -8 --------- Run | Scr Mat Min Exi Min Mat Sto Distress Signals 8 | . 1 . . . 6 1 Communications Jammed . | . . . . . . . Distress Signals . | . . . . . . . Times Spotted 138 | . 23 5 . 21 49 40 Peak Tracking Total 8 | . 4 2 . 5 5 8 Tactical Retreats 12 | . . 1 . 4 7 . Traps | -11 -10 -10 -10 -9 -8 -8 ------- Run | Scr Mat Min Exi Min Mat Sto Traps Triggered 6 | . 4 . . . . 2 Indirectly . | . . . . . . . Trap Hack Attempts . | . . . . . . . Triggered . | . . . . . . . Disarmed 1 | . . . . . 1 . Reprogrammed . | . . . . . . . Reused . | . . . . . . . Traps Extracted . | . . . . . . . Installed . | . . . . . . . Triggered . | . . . . . . . Machines | -11 -10 -10 -10 -9 -8 -8 ---------- Run | Scr Mat Min Exi Min Mat Sto Machines Disabled 11 | . 2 . . . 4 5 Max in Single Turn 1 | . 1 . . . 1 1 Garrison Access 1 | . . . . . . 1 Machines Sabotaged . | . . . . . . . Garrisons Compromised . | . . . . . . . Overloaded Fab Kills . | . . . . . . . Fab Network Shutdowns . | . . . . . . . Hacking | -11 -10 -10 -10 -9 -8 -8 --------- Run | Scr Mat Min Exi Min Mat Sto Machines Accessed 33 | . 9 1 1 1 10 11 Terminals 28 | . 8 1 . . 10 9 Fabricators . | . . . . . . . Repair Stations 1 | . . . . . . 1 Recycling Units 1 | . 1 . . . . . Scanalyzers . | . . . . . . . Garrison Access 1 | . . . . . . 1 Total Hacks 121 | . 27 5 23 1 31 34 Successful 88 | . 24 3 23 1 17 20 Failed 33 | . 3 2 . . 14 14 Catastrophic 1 | . . . . . . 1 Database Lockouts . | . . . . . . . Manual 78 | . 25 2 . . 29 22 Terminals 93 | . 26 5 . . 31 31 Fabricators . | . . . . . . . Repair Stations 2 | . . . . . . 2 Recycling Units 1 | . 1 . . . . . Scanalyzers . | . . . . . . . Garrison Access 1 | . . . . . . 1 Terminal Hacks 58 | . 12 2 23 1 9 11 Record 23 | . . . 23 . . . Part Schematic 1 | . 1 . . . . . Open Door 2 | . . . . 1 . 1 Branch Access Points 2 | . 1 . . . 1 . Terminal Index 1 | . . . . . . 1 Alert Level 10 | . 3 1 . . 2 4 Unreport Threat 5 | . . . . . 1 4 Disarm Traps 1 | . . . . . 1 . Hauler Manifests 1 | . 1 . . . . . Zone Layout 12 | . 6 1 . . 4 1 Fabricator Hacks . | . . . . . . . Repair Station Hacks 2 | . . . . . . 2 Scan Component 1 | . . . . . . 1 Repair 1 | . . . . . . 1 Recycling Unit Hacks . | . . . . . . . Scanalyzer . | . . . . . . . Garrison Access Hacks 1 | . . . . . . 1 Seal Access 1 | . . . . . . 1 Unauthorized Hacks 27 | . 12 1 . . 8 6 Terminals 26 | . 11 1 . . 8 6 Track 6 | . 5 . . . 1 . Botnet 19 | . 5 1 . . 7 6 Detonate 1 | . 1 . . . . . Fabricators . | . . . . . . . Repair Stations . | . . . . . . . Recycling Units 1 | . 1 . . . . . Tunnel 1 | . 1 . . . . . Scanalyzers . | . . . . . . . Garrison Access . | . . . . . . . Data Cores Recovered 1 | . . . . . . 1 Used 1 | . . . . . . 1 Hacking Detections 27 | . 7 . . . 10 10 Full Trace Events 2 | . 1 . . . 1 . Feedback Events . | . . . . . . . Feedback Blocked . | . . . . . . . Robot Schematics Acquired . | . . . . . . . Robots Built . | . . . . . . . Matter . | . . . . . . . Time . | . . . . . . . Total Robot Build Rating . | . . . . . . . Part Schematics Acquired 1 | . 1 . . . . . Parts Built . | . . . . . . . Matter . | . . . . . . . Time . | . . . . . . . Total Part Build Rating . | . . . . . . . Parts Repaired 1 | . . . . . . 1 Time 38 | . . . . . . 38 Parts Recycled . | . . . . . . . Recycled Matter . | . . . . . . . Retrieved Matter . | . . . . . . . Retrieved Components . | . . . . . . . Parts Scanalyzed . | . . . . . . . Part Schematics Acquired . | . . . . . . . Parts Damaged . | . . . . . . . Bothacking | -11 -10 -10 -10 -9 -8 -8 ------------ Run | Scr Mat Min Exi Min Mat Sto Used RIF Installer . | . . . . . . . Robots Hacked . | . . . . . . . Non-combat . | . . . . . . . Combat . | . . . . . . . Robot Hacks Applied . | . . . . . . . Relay Couplers Released 1 | . . . . . . 1 Machine Destruction 1 | . . . . . . 1 Robots Rewired . | . . . . . . . Allies Hacked . | . . . . . . . Hacks Repelled . | . . . . . . . Allies | -11 -10 -10 -10 -9 -8 -8 -------- Run | Scr Mat Min Exi Min Mat Sto Total Allies 18 | . . . . 3 . 15 Largest Group 15 | . . . . 3 2 15 Highest-Rated Group 328 | . . . . 40 30 328 Highest-Rated Ally 31 | . . . . 16 16 31 Total Orders . | . . . . . . . Ally Attacks 78 | . . . . 37 2 39 Total Damage 1119 | . . . . 473 17 629 Kills 8 | . . . . 4 . 4 Allies Corrupted . | . . . . . . . Allies Melted . | . . . . . . . Intel | -11 -10 -10 -10 -9 -8 -8 ------- Run | Scr Mat Min Exi Min Mat Sto Robot Analysis Total . | . . . . . . . Derelict Logs Recovered 2 | . . 1 . 1 . . Drone Launches 2 | . . . . . . 2 Drone Recoveries . | . . . . . . . Exploration | -11 -10 -10 -10 -9 -8 -8 ------------- Run | Scr Mat Min Exi Min Mat Sto Turns Passed 6559 | 82 1235 307 536 1036 1787 1576 Spaces Moved 3326 | 51 749 222 411 510 728 655 Core 19 | 18 1 . . . . . Treads . | . . . . . . . Legs 3275 | 33 716 222 411 510 728 655 Wheels 32 | . 32 . . . . . Hover . | . . . . . . . Flight . | . . . . . . . Fastest Speed 50 | 50 100 120 120 180 180 153 Average Speed 157 | 121 125 120 129 180 180 183 Slowest Speed 350 | 150 350 120 180 180 210 210 Overloaded Moves . | . . . . . . . Propulsion Burnouts . | . . . . . . . Robots Hopped . | . . . . . . . Cave-ins Triggered . | . . . . . . . Exploration Rate (%) 70 | 5 93 53 81 96 71 94 Regions Visited 6 Branch Regions 4 Pre-discovered Areas 3 | . 1 . 1 1 . . Known Exits Taken 2 | . 1 . . . 1 . Unknown Exits Taken 4 | 1 . 1 1 1 . . Scrap Searched 2 | . . . . 2 . . Spaces Dug 1 | . . . . . 1 . Terrain Destroyed 294 | . 32 . . 58 94 110 Melee . | . . . . . . . Projectile 21 | . . . . 6 15 . AOE 273 | . 32 . . 52 79 110 Terrain Rammed . | . . . . . . . Walls Destroyed . | . . . . . . . Machines Disabled . | . . . . . . . Actions | -11 -10 -10 -10 -9 -8 -8 --------- Run | Scr Mat Min Exi Min Mat Sto Total 4158 | 63 953 242 414 588 1006 892 Wait 368 | 2 103 11 1 45 94 112 Move 3320 | 50 748 221 410 509 727 655 Hop . | . . . . . . . Pick Up 68 | 2 20 . . 6 27 13 Fast Attach 29 | 7 11 . . . 6 5 Attach 21 | . 2 . . 2 12 5 Detach . | . . . . . . . Swap 50 | . 6 . 2 4 22 16 Drop 45 | . 15 . 1 . 15 14 Fire 256 | 2 48 10 . 22 102 72 Melee . | . . . . . . . Ram . | . . . . . . . Kick 1 | . . . . . 1 . Crush . | . . . . . . . Escape Stasis . | . . . . . . . Rewire . | . . . . . . . Trap . | . . . . . . . Miscellaneous . | . . . . . . . Route ------- -11/Scrapyard -10/Materials (discovered 4 exits: [*Mat x3] / *Min) -10/Mines (discovered 2 exits: [*Mat] / *Exi) -10/Exiles -9/Mines (discovered 2 exits: *Mat x2) -8/Materials (discovered 4 exits: [*Fac x3] / *Sto) -8/Storage (discovered 1 exit: [*Fac]) History --------- Turn | Location | Event 6 | -11/Scrapyard | Discovered new exit (range 16) 83 | -11/Scrapyard | Entered Materials 108 | -10/Materials | Identified exit to Mines 309 | -10/Materials | Build established: Mutant 549 | -10/Materials | Destroyed 7 combat bots 568 | -10/Materials | Discovered new exit (range 10) 752 | -10/Materials | Discovered new exit (range 16) 976 | -10/Materials | Discovered new exit (range 5) 1318 | -10/Materials | Entered Mines 1338 | -10/Mines | Met a Derelict bent on vengeance 1437 | -10/Mines | A weapon hastily lodged in a ceiling crevice suddenly fell to the ground 1488 | -10/Mines | Discovered new exit (range 7) 1602 | -10/Mines | Learned Materials trap positions 1618 | -10/Mines | Deemed a non-threat by the Exiles lab entrance 1618 | -10/Mines | Discovered new exit (range 5) 1625 | -10/Mines | Entered Exiles 1655 | -10/Exiles | Met 8R-AWN 1675 | -10/Exiles | Met EX-HEX 1720 | -10/Exiles | Met EX-DEC 1729 | -10/Exiles | Learned location of Zion (-6) 1780 | -10/Exiles | Visited The Gauntlet 1920 | -10/Exiles | Met EX-BIN 2141 | -10/Exiles | Discovered new exit (range 12) 2161 | -10/Exiles | Entered Mines 2299 | -9/Mines | Met a Derelict who couldn't figure out how to use a Trap Extractor 2339 | -9/Mines | Build established: Hauler-Mutant 2371 | -9/Mines | Discovered new exit (range 14) 2423 | -9/Mines | Discovered new exit (range 4) 2699 | -9/Mines | Learned location of Recycling (-8) 2787 | -9/Mines | Assisted by bots powering up and referring to "LRC-V3" 3197 | -9/Mines | Entered Materials 3197 | -8/Materials | Accompanied by 2 allies 3197 | -8/Materials | Evolved 4 slots: Propulsion x1, Utility x3 3198 | -8/Materials | Loaded intel: 18 trap records 3303 | -8/Materials | Discovered new exit (range 15) 3443 | -8/Materials | Identified exit to Storage 4253 | -8/Materials | Discovered new exit (range 12) 4526 | -8/Materials | Discovered new exit (range 3) 4808 | -8/Materials | Discovered new exit (range 16) 4984 | -8/Materials | Entered Storage 5305 | -8/Storage | Core integrity fell below 50% 5665 | -8/Storage | Discovered new exit (range 5) 5712 | -8/Storage | Allied Derelicts emerged from ambush trap array 6038 | -8/Storage | Repaired Carbon-fiber Leg 6154 | -8/Storage | Assisted by bots powering up and referring to "LRC-V3" 6447 | -8/Storage | Build established: Commander-Mutant 6482 | -8/Storage | Met a pair of Derelict thieves 6560 | -8/Storage | Self-destructed Last Messages --------------- 06539_ M-28 Smith unfolds itself. 06548_ Trooper 3d destroyed. 06548_ T9-2UR(g) destroyed. 06551_ Trooper 3f destroyed. 06552_ AP-ZFZ(g) destroyed. 06552_ Trooper 3h destroyed. 06552_ Trooper 3c destroyed. 06552_ B-36 Bruiser destroyed. 06553_ Trooper 3i destroyed. 06553_ Trooper 3b destroyed. 06555_ Imp. Heat Sink destroyed. 06556_ The unstable cave ceiling collapses. 06557_ K-01 Serf collects debris. 06558_ Drone released from Drone Bay. 06558_ Carbon-fiber Leg destroyed. 06558_ Drone destroyed. 06559_ Drone released from Drone Bay. 06559_ Drone destroyed. 06559_ Drone Bay destroyed. 06559_ Lgt. EM Pulse Cannon destroyed. Map ----- +----------------------------------------------------+ | | | | | | | | | | | | | | | | | | | | | | | | | | | | | ?????????????????????????????#########???????????? | | ?????????????????????????????# ##??????????? | | ???????????????????????####### # # ##?????????? | | ???????????????????????# ##################### | | ??????????????########## # | | ??????????????# # T # | | ??????????????#""" # # | | ??????????????#""" ##############+###### | | ??????????????#""" # ##?## #?? | | ??????????????# ##?#T #?? | | ??????? ??#""" #?###" "##?? | | ????### # """ @ #?# !#?? | | ????? #""" ###+#####?#!! #?? | | ??????? # ^ #?# #?????# ! !!#?? | | ??#####+####### d ##?# #?????#! ! !#?? | | # mm g d% #### #?????########?? | | + %% g %g%%dd%=%= #??????????????? | | # %%% !g%=%%=! #######??????????????? | | T"" # k%#### ####?????????????????? | | """ # !! # #?????????????????? | | ! "" # [ % #??????##?????????? | | # ### # """ # #?????? #?????????? | | # # """ # #?????? #?????????? | | # # # #????? #?????????? | | !%=% % =%% # !""" # #????? #?????????? | | *[! % % / !""" # #????? !#?????????? | | % ## #= """ # #??? #?????????? | | # # ## %# #+##+#######"""" #?????????? | | #^ # """ # #?????#"""" #?????????# | | #^ """ # # [""" # #?????#"""" #?????????# | | # """ # # """ # #?????#"""" #???????### | | # """ + # # #?????# #???????# | | # "T" ^ # ######## #?????# #???????# | | # """ # #??????? ??####### | | # # #### ##########+##### # | | ######+###### #??# """ # ## # " | +----------------------------------------------------+ Best States ------------- Heat Dissipation 53 Energy Generation 14 Energy Capacity 265 Matter Stores 300 Matter Capacity 300 Sight Range 16 Terrain Scan Density 10 Armor Coverage 150 Evasion (%) 40 Item Schematics ----------------- Hcp. Storage Unit | -10/Materials | Hacked Robot Schematics ------------------ None Fabricated ------------ Nothing Alien Tech Used ----------------- None Achievements -------------- None Challenges ------------ None Game ------ Seed TrapTractorMinigun Manual? 0 Play Time 00:50:55 Cumulative 1107.5 hours Start 2020.11.02 @ 16:42:39 End 2020.11.02 @ 17:41:31 Sessions 1 Manual Loads 0 Difficulty Rogue Special Mode Halloween2020/ForbiddenLore Game No. 360 Rogue 360 Adventurer 0 Explorer 0 Win Type - Total 80 Types 14/9/36/5/1/2/12/0/1 Lore% 96 Gallery% 95 Achievement% 85 Wizard Run 0 Options --------- ASCII 0 Keyboard 0 Movement Numpad Keybinds 0 Fullscreen 1 Font 18/SmallcapsGlow Map View 76x50 Tactical HUD 1 Map Filters NONE Filters NONE Steam 1 RUN: 4d8a5f98-64c6-4ce3-b5d6-aa737e228e86